[Event "Titled Tuesday Blitz April 05 Late 2022"]
[White "Wesolowska, Hanna"]
[Black "Reprintsev, Alexander"]
[WhiteFideId "1104683"]
[BlackFideId "14100541"]
[WhiteElo "2355"]
[BlackElo "2551"]
[Result "0-1"]
[Round "06"]
[TimeControl "180+1"]
[Date "2022.04.06"]
[WhiteClock "0:00:25"]
[BlackClock "0:00:42"]

1. e4 {[%clk 0:02:49]}  d5 {[%clk 0:02:58]} 2. Nc3 {[%clk 0:02:48]}  d4 {[%clk 0:02:55]} 3. Nce2 {[%clk 0:02:47]}  c5 {[%clk 0:02:55]} 4. Ng3 {[%clk 0:02:46]}  Qa5 {[%clk 0:02:53]} 5. Bc4 {[%clk 0:02:42]}  Nc6 {[%clk 0:02:53]} 6. Nf3 {[%clk 0:02:41]}  h5 {[%clk 0:02:51]} 7. h4 {[%clk 0:02:40]}  Bg4 {[%clk 0:02:51]} 8. O-O {[%clk 0:02:38]}  e6 {[%clk 0:02:50]} 9. c3 {[%clk 0:02:37]}  b5 {[%clk 0:02:49]} 10. Bb3 {[%clk 0:02:29]}  c4 {[%clk 0:02:48]} 11. Bc2 {[%clk 0:02:25]}  d3 {[%clk 0:02:48]} 12. Bb1 {[%clk 0:02:26]}  Qb6 {[%clk 0:02:47]} 13. a4 {[%clk 0:02:25]}  b4 {[%clk 0:02:42]} 14. cxb4 {[%clk 0:02:23]}  Bxb4 {[%clk 0:02:40]} 15. b3 {[%clk 0:02:23]}  cxb3 {[%clk 0:02:21]} 16. Qxb3 {[%clk 0:02:22]}  Bxf3 {[%clk 0:02:20]} 17. gxf3 {[%clk 0:02:23]}  Be7 {[%clk 0:02:13]} 18. Qxd3 {[%clk 0:02:18]}  Bxh4 {[%clk 0:02:11]} 19. Kg2 {[%clk 0:02:17]}  Rd8 {[%clk 0:02:08]} 20. Qb5 {[%clk 0:02:15]}  Bf6 {[%clk 0:02:07]} 21. Ra2 {[%clk 0:02:08]}  h4 {[%clk 0:02:07]} 22. Qxb6 {[%clk 0:02:04]}  axb6 {[%clk 0:02:06]} 23. Rh1 {[%clk 0:02:00]}  Nge7 {[%clk 0:02:01]} 24. Ba3 {[%clk 0:01:55]}  Ng6 {[%clk 0:02:00]} 25. Ne2 {[%clk 0:01:54]}  Nd4 {[%clk 0:01:56]} 26. Bd3 {[%clk 0:01:43]}  Nxe2 {[%clk 0:01:55]} 27. Bxe2 {[%clk 0:01:43]}  Nf4+ {[%clk 0:01:55]} 28. Kf1 {[%clk 0:01:44]}  Be7 {[%clk 0:01:30]} 29. Bb5+ {[%clk 0:01:39]}  Kf8 {[%clk 0:01:30]} 30. Bxe7+ {[%clk 0:01:32]}  Kxe7 {[%clk 0:01:31]} 31. Rc2 {[%clk 0:01:32]}  Kf6 {[%clk 0:01:29]} 32. Ke1 {[%clk 0:01:16]}  h3 {[%clk 0:01:28]} 33. Rh2 {[%clk 0:01:10]}  Rd4 {[%clk 0:01:27]} 34. Rc4 {[%clk 0:01:01]}  Rhd8 {[%clk 0:01:26]} 35. Rxd4 {[%clk 0:00:56]}  Rxd4 {[%clk 0:01:26]} 36. Kd1 {[%clk 0:00:52]}  e5 {[%clk 0:01:01]} 37. Kc2 {[%clk 0:00:48]}  Kg5 {[%clk 0:01:01]} 38. Kc3 {[%clk 0:00:47]}  Kh4 {[%clk 0:00:59]} 39. Rh1 {[%clk 0:00:37]}  g6 {[%clk 0:00:58]} 40. Rh2 {[%clk 0:00:37]}  f5 {[%clk 0:00:57]} 41. Bc6 {[%clk 0:00:31]}  Ne2+ {[%clk 0:00:50]} 42. Kc2 {[%clk 0:00:30]}  Rc4+ {[%clk 0:00:47]} 43. Kd3 {[%clk 0:00:30]}  Rxc6 {[%clk 0:00:46]} 44. Kxe2 {[%clk 0:00:30]}  f4 {[%clk 0:00:42]} 45. Rh1 {[%clk 0:00:29]}  Rc4 {[%clk 0:00:42]} 46. Kd3 {[%clk 0:00:27]}  Rxa4 {[%clk 0:00:41]} 47. Kc3 {[%clk 0:00:25]}  Ra3+ {[%clk 0:00:41]} 48. Kc2 {[%clk 0:00:25]}  Rxf3 {[%clk 0:00:42]} 0-1


[Site "https://www.chess.com"]

[Event "Titled Tuesday Blitz April 05 Late 2022"]
[White "Wieczorek, Oskar"]
[Black "Suarez Uriel, Adrian"]
[WhiteFideId "1133950"]
[BlackFideId "22230874"]
[WhiteElo "2610"]
[BlackElo "2489"]
[Result "1-0"]
[Round "06"]
[TimeControl "180+1"]
[Date "2022.04.06"]
[WhiteClock "0:00:10"]
[BlackClock "0:00:23"]

1. e4 {[%clk 0:03:00]}  c5 {[%clk 0:02:56]} 2. Nf3 {[%clk 0:03:01]}  Nc6 {[%clk 0:02:56]} 3. b4 {[%clk 0:03:01]}  b6 {[%clk 0:02:53]} 4. bxc5 {[%clk 0:03:01]}  bxc5 {[%clk 0:02:53]} 5. Bb5 {[%clk 0:03:02]}  Qc7 {[%clk 0:02:52]} 6. Nc3 {[%clk 0:03:02]}  e6 {[%clk 0:02:50]} 7. O-O {[%clk 0:03:02]}  Be7 {[%clk 0:02:50]} 8. Re1 {[%clk 0:03:00]}  a6 {[%clk 0:02:47]} 9. Ba4 {[%clk 0:02:53]}  Nf6 {[%clk 0:02:45]} 10. e5 {[%clk 0:02:53]}  Nd5 {[%clk 0:02:45]} 11. Nxd5 {[%clk 0:02:48]}  exd5 {[%clk 0:02:46]} 12. d4 {[%clk 0:02:45]}  c4 {[%clk 0:02:45]} 13. c3 {[%clk 0:02:39]}  O-O {[%clk 0:02:41]} 14. Bf4 {[%clk 0:02:39]}  d6 {[%clk 0:02:39]} 15. Bc2 {[%clk 0:02:08]}  dxe5 {[%clk 0:02:38]} 16. dxe5 {[%clk 0:02:09]}  Bg4 {[%clk 0:02:33]} 17. h3 {[%clk 0:02:09]}  Bh5 {[%clk 0:02:32]} 18. Qxd5 {[%clk 0:02:08]}  Rad8 {[%clk 0:02:29]} 19. Qxc4 {[%clk 0:02:07]}  Bxf3 {[%clk 0:02:29]} 20. gxf3 {[%clk 0:02:08]}  Qc8 {[%clk 0:02:15]} 21. Kg2 {[%clk 0:02:01]}  Na5 {[%clk 0:01:53]} 22. Qe4 {[%clk 0:01:29]}  g6 {[%clk 0:01:53]} 23. Bh6 {[%clk 0:01:05]}  Rfe8 {[%clk 0:01:52]} 24. Rac1 {[%clk 0:01:01]}  Qc4 {[%clk 0:01:51]} 25. Qxc4 {[%clk 0:00:59]}  Nxc4 {[%clk 0:01:51]} 26. Ba4 {[%clk 0:01:00]}  Bf8 {[%clk 0:01:46]} 27. Bg5 {[%clk 0:00:51]}  Be7 {[%clk 0:01:44]} 28. Bh6 {[%clk 0:00:28]}  Bf8 {[%clk 0:01:43]} 29. Bf4 {[%clk 0:00:25]}  Re6 {[%clk 0:01:37]} 30. Bb3 {[%clk 0:00:25]}  Rc6 {[%clk 0:01:38]} 31. Re4 {[%clk 0:00:25]}  Na5 {[%clk 0:01:18]} 32. Ba4 {[%clk 0:00:16]}  Rc4 {[%clk 0:01:03]} 33. Rxc4 {[%clk 0:00:16]}  Nxc4 {[%clk 0:01:03]} 34. Bb3 {[%clk 0:00:15]}  Nb2 {[%clk 0:00:59]} 35. Bg5 {[%clk 0:00:11]}  Re8 {[%clk 0:00:53]} 36. f4 {[%clk 0:00:11]}  h6 {[%clk 0:00:50]} 37. Bf6 {[%clk 0:00:09]}  Nd3 {[%clk 0:00:50]} 38. Rd1 {[%clk 0:00:09]}  Nxf4+ {[%clk 0:00:50]} 39. Kf3 {[%clk 0:00:09]}  Ne6 {[%clk 0:00:50]} 40. Rd7 {[%clk 0:00:10]}  Bg7 {[%clk 0:00:47]} 41. Bxg7 {[%clk 0:00:08]}  Kxg7 {[%clk 0:00:47]} 42. Ra7 {[%clk 0:00:09]}  Ng5+ {[%clk 0:00:42]} 43. Kf4 {[%clk 0:00:09]}  Nxh3+ {[%clk 0:00:42]} 44. Kg3 {[%clk 0:00:10]}  Ng5 {[%clk 0:00:41]} 45. f4 {[%clk 0:00:11]}  Ne6 {[%clk 0:00:34]} 46. Rxa6 {[%clk 0:00:11]}  Nc5 {[%clk 0:00:35]} 47. Ra7 {[%clk 0:00:11]}  Nxb3 {[%clk 0:00:24]} 48. axb3 {[%clk 0:00:12]}  Rd8 {[%clk 0:00:25]} 49. Rc7 {[%clk 0:00:10]}  Rd3+ {[%clk 0:00:24]} 50. Kg2 {[%clk 0:00:11]}  g5 {[%clk 0:00:25]} 51. fxg5 {[%clk 0:00:09]}  hxg5 {[%clk 0:00:25]} 52. e6 {[%clk 0:00:10]}  Kf6 {[%clk 0:00:22]} 53. exf7 {[%clk 0:00:09]}  Kg7 {[%clk 0:00:23]} 54. b4 {[%clk 0:00:10]}  g4 {[%clk 0:00:22]} 55. b5 {[%clk 0:00:10]}  Rd5 {[%clk 0:00:22]} 56. c4 {[%clk 0:00:10]}  Rd2+ {[%clk 0:00:23]} 57. Kg3 {[%clk 0:00:10]} 1-0


[Site "https://www.chess.com"]

[Event "Titled Tuesday Blitz April 05 Late 2022"]
[White "Xiong, Jeffery"]
[Black "Andreikin, Dmitry"]
[WhiteFideId "2047640"]
[BlackFideId "4158814"]
[WhiteElo "2727"]
[BlackElo "2736"]
[Result "0-1"]
[Round "06"]
[TimeControl "180+1"]
[Date "2022.04.05"]
[WhiteClock "0:00:02"]
[BlackClock "0:00:29"]

1. e4 {[%clk 0:03:00]}  c5 {[%clk 0:03:00]} 2. Nf3 {[%clk 0:03:01]}  e6 {[%clk 0:03:00]} 3. c3 {[%clk 0:03:01]}  d5 {[%clk 0:03:00]} 4. exd5 {[%clk 0:03:01]}  exd5 {[%clk 0:03:01]} 5. d4 {[%clk 0:03:00]}  Nc6 {[%clk 0:03:01]} 6. Bb5 {[%clk 0:02:56]}  Bd6 {[%clk 0:03:01]} 7. O-O {[%clk 0:02:56]}  Nf6 {[%clk 0:03:01]} 8. Bg5 {[%clk 0:02:55]}  O-O {[%clk 0:03:00]} 9. dxc5 {[%clk 0:02:54]}  Bxc5 {[%clk 0:03:00]} 10. Nbd2 {[%clk 0:02:54]}  h6 {[%clk 0:03:00]} 11. Bh4 {[%clk 0:02:54]}  Bb6 {[%clk 0:02:53]} 12. Re1 {[%clk 0:02:53]}  Bg4 {[%clk 0:02:43]} 13. h3 {[%clk 0:02:53]}  Bh5 {[%clk 0:02:42]} 14. Nf1 {[%clk 0:02:53]}  g5 {[%clk 0:02:39]} 15. Bg3 {[%clk 0:02:53]}  Ne4 {[%clk 0:02:39]} 16. c4 {[%clk 0:02:50]}  Nd4 {[%clk 0:02:33]} 17. Ba4 {[%clk 0:01:26]}  Qf6 {[%clk 0:02:22]} 18. Re3 {[%clk 0:00:50]}  Rad8 {[%clk 0:01:54]} 19. Be5 {[%clk 0:00:40]}  Nxf3+ {[%clk 0:01:42]} 20. Qxf3 {[%clk 0:00:40]}  Qxe5 {[%clk 0:01:15]} 21. Qxh5 {[%clk 0:00:40]}  Qxb2 {[%clk 0:01:15]} 22. Qxh6 {[%clk 0:00:09]}  Qxa1 {[%clk 0:00:37]} 23. Bc2 {[%clk 0:00:03]}  Bxe3 {[%clk 0:00:35]} 24. fxe3 {[%clk 0:00:04]}  Qg7 {[%clk 0:00:35]} 25. Qh5 {[%clk 0:00:04]}  Rfe8 {[%clk 0:00:33]} 26. cxd5 {[%clk 0:00:03]}  Rxd5 {[%clk 0:00:33]} 27. Qf3 {[%clk 0:00:04]}  Rde5 {[%clk 0:00:32]} 28. Qg4 {[%clk 0:00:02]}  Qf6 {[%clk 0:00:30]} 29. Bxe4 {[%clk 0:00:01]}  Rxe4 {[%clk 0:00:30]} 30. Qh5 {[%clk 0:00:02]}  Rxe3 {[%clk 0:00:29]} 0-1


[Site "https://www.chess.com"]

[Event "Titled Tuesday Blitz April 05 Late 2022"]
[White "Yuan, Qingyu"]
[Black "Chernobay, Artem"]
[WhiteFideId "8609772"]
[BlackFideId "4167406"]
[WhiteElo "2359"]
[BlackElo "2473"]
[Result "1-0"]
[Round "06"]
[TimeControl "180+1"]
[Date "2022.04.05"]
[WhiteClock "0:00:10"]
[BlackClock "0:00:03"]

1. e4 {[%clk 0:03:00]}  c5 {[%clk 0:02:59]} 2. Nf3 {[%clk 0:03:01]}  d6 {[%clk 0:02:59]} 3. Bb5+ {[%clk 0:03:01]}  Nd7 {[%clk 0:02:59]} 4. c4 {[%clk 0:03:02]}  Nf6 {[%clk 0:02:57]} 5. Nc3 {[%clk 0:03:02]}  g6 {[%clk 0:02:56]} 6. h3 {[%clk 0:02:59]}  Bg7 {[%clk 0:02:56]} 7. d3 {[%clk 0:02:59]}  O-O {[%clk 0:02:55]} 8. Ba4 {[%clk 0:03:00]}  Ne5 {[%clk 0:02:49]} 9. Be3 {[%clk 0:02:49]}  b6 {[%clk 0:02:41]} 10. Nxe5 {[%clk 0:02:26]}  dxe5 {[%clk 0:02:41]} 11. a3 {[%clk 0:02:26]}  Bb7 {[%clk 0:02:27]} 12. b4 {[%clk 0:02:24]}  cxb4 {[%clk 0:02:17]} 13. axb4 {[%clk 0:02:24]}  Nh5 {[%clk 0:02:13]} 14. O-O {[%clk 0:02:18]}  Nf4 {[%clk 0:02:12]} 15. Nd5 {[%clk 0:02:17]}  Nxd5 {[%clk 0:01:39]} 16. exd5 {[%clk 0:02:07]}  f5 {[%clk 0:01:31]} 17. Bc6 {[%clk 0:01:59]}  Bxc6 {[%clk 0:01:05]} 18. dxc6 {[%clk 0:01:59]}  Qd6 {[%clk 0:00:50]} 19. b5 {[%clk 0:01:52]}  f4 {[%clk 0:00:46]} 20. Bc1 {[%clk 0:01:48]}  e4 {[%clk 0:00:44]} 21. Ba3 {[%clk 0:01:35]}  Qe6 {[%clk 0:00:30]} 22. dxe4 {[%clk 0:01:35]}  Bxa1 {[%clk 0:00:28]} 23. Qxa1 {[%clk 0:01:36]}  f3 {[%clk 0:00:27]} 24. Qc3 {[%clk 0:00:52]}  fxg2 {[%clk 0:00:24]} 25. Rd1 {[%clk 0:00:42]}  Qxe4 {[%clk 0:00:18]} 26. Bb2 {[%clk 0:00:38]}  Rf6 {[%clk 0:00:17]} 27. Qd4 {[%clk 0:00:33]}  Qf3 {[%clk 0:00:13]} 28. Qd5+ {[%clk 0:00:31]}  Qxd5 {[%clk 0:00:11]} 29. cxd5 {[%clk 0:00:25]}  Rf3 {[%clk 0:00:10]} 30. Re1 {[%clk 0:00:22]}  Rb3 {[%clk 0:00:09]} 31. Rxe7 {[%clk 0:00:18]}  Rxb2 {[%clk 0:00:08]} 32. d6 {[%clk 0:00:18]}  Rd2 {[%clk 0:00:06]} 33. d7 {[%clk 0:00:17]}  Rf8 {[%clk 0:00:03]} 34. Re8 {[%clk 0:00:10]} 1-0


[Site "https://www.chess.com"]

[Event "Titled Tuesday Blitz April 05 Late 2022"]
[White "Zherebtsova, Alexandra"]
[Black "Kosteniuk, Alexandra"]
[WhiteFideId "24129518"]
[BlackFideId "4128125"]
[WhiteElo "2405"]
[BlackElo "2677"]
[Result "0-1"]
[Round "06"]
[TimeControl "180+1"]
[Date "2022.04.06"]
[WhiteClock "0:00:03"]
[BlackClock "0:00:13"]

1. d4 {[%clk 0:03:00]}  Nf6 {[%clk 0:02:59]} 2. Nf3 {[%clk 0:03:01]}  d5 {[%clk 0:02:59]} 3. c4 {[%clk 0:03:00]}  e6 {[%clk 0:03:00]} 4. e3 {[%clk 0:03:01]}  c5 {[%clk 0:02:59]} 5. cxd5 {[%clk 0:03:00]}  Nxd5 {[%clk 0:02:57]} 6. Be2 {[%clk 0:02:59]}  Nc6 {[%clk 0:02:56]} 7. O-O {[%clk 0:02:59]}  cxd4 {[%clk 0:02:41]} 8. Nxd4 {[%clk 0:02:59]}  Bd7 {[%clk 0:02:40]} 9. b3 {[%clk 0:02:48]}  Bd6 {[%clk 0:02:37]} 10. Bb2 {[%clk 0:02:39]}  Qh4 {[%clk 0:02:33]} 11. g3 {[%clk 0:02:29]}  Qe7 {[%clk 0:02:30]} 12. Nf5 {[%clk 0:02:22]}  exf5 {[%clk 0:02:27]} 13. Qxd5 {[%clk 0:02:21]}  Be6 {[%clk 0:02:19]} 14. Qg2 {[%clk 0:02:00]}  O-O {[%clk 0:02:19]} 15. Nc3 {[%clk 0:01:56]}  Rac8 {[%clk 0:02:16]} 16. Nd5 {[%clk 0:01:47]}  Qg5 {[%clk 0:02:03]} 17. Rfd1 {[%clk 0:01:33]}  Rfd8 {[%clk 0:02:03]} 18. h4 {[%clk 0:01:28]}  Qh6 {[%clk 0:02:00]} 19. Nf4 {[%clk 0:01:12]}  Be5 {[%clk 0:01:51]} 20. Bxe5 {[%clk 0:01:03]}  Nxe5 {[%clk 0:01:50]} 21. Nxe6 {[%clk 0:01:02]}  Qxe6 {[%clk 0:01:49]} 22. Qxb7 {[%clk 0:00:58]}  a5 {[%clk 0:01:47]} 23. Qb5 {[%clk 0:00:48]}  h6 {[%clk 0:01:20]} 24. Qxa5 {[%clk 0:00:42]}  Rxd1+ {[%clk 0:01:20]} 25. Rxd1 {[%clk 0:00:41]}  Rc2 {[%clk 0:01:20]} 26. Rd2 {[%clk 0:00:22]}  Rc1+ {[%clk 0:01:20]} 27. Rd1 {[%clk 0:00:22]}  Rc2 {[%clk 0:01:21]} 28. Rd2 {[%clk 0:00:22]}  Rc1+ {[%clk 0:01:07]} 29. Rd1 {[%clk 0:00:22]}  Rc6 {[%clk 0:01:01]} 30. Qd5 {[%clk 0:00:19]}  Rc2 {[%clk 0:00:55]} 31. Qxe6 {[%clk 0:00:16]}  fxe6 {[%clk 0:00:56]} 32. Bc4 {[%clk 0:00:16]}  Kf7 {[%clk 0:00:46]} 33. a4 {[%clk 0:00:13]}  Ke7 {[%clk 0:00:42]} 34. a5 {[%clk 0:00:12]}  Nxc4 {[%clk 0:00:30]} 35. bxc4 {[%clk 0:00:12]}  Ra2 {[%clk 0:00:31]} 36. Rc1 {[%clk 0:00:11]}  Rxa5 {[%clk 0:00:31]} 37. c5 {[%clk 0:00:11]}  Kd7 {[%clk 0:00:26]} 38. Kg2 {[%clk 0:00:12]}  Kc6 {[%clk 0:00:26]} 39. Kf3 {[%clk 0:00:12]}  e5 {[%clk 0:00:25]} 40. e4 {[%clk 0:00:09]}  Ra3+ {[%clk 0:00:25]} 41. Kg2 {[%clk 0:00:09]}  fxe4 {[%clk 0:00:23]} 42. Re1 {[%clk 0:00:09]}  Ra4 {[%clk 0:00:22]} 43. Rc1 {[%clk 0:00:08]}  Ra2 {[%clk 0:00:18]} 44. Re1 {[%clk 0:00:07]}  Kd5 {[%clk 0:00:15]} 45. Re3 {[%clk 0:00:07]}  Rc2 {[%clk 0:00:15]} 46. c6 {[%clk 0:00:05]}  Rxc6 {[%clk 0:00:15]} 47. Ra3 {[%clk 0:00:06]}  Rc2 {[%clk 0:00:14]} 48. Rb3 {[%clk 0:00:06]}  Kd4 {[%clk 0:00:14]} 49. Re3 {[%clk 0:00:06]}  Rd2 {[%clk 0:00:14]} 50. Ra3 {[%clk 0:00:06]}  Rd3 {[%clk 0:00:13]} 51. Ra7 {[%clk 0:00:06]}  g5 {[%clk 0:00:12]} 52. hxg5 {[%clk 0:00:05]}  hxg5 {[%clk 0:00:13]} 53. Rg7 {[%clk 0:00:05]}  Rd2 {[%clk 0:00:13]} 54. Kf1 {[%clk 0:00:04]}  e3 {[%clk 0:00:10]} 55. fxe3+ {[%clk 0:00:04]}  Kxe3 {[%clk 0:00:10]} 56. Rxg5 {[%clk 0:00:04]}  e4 {[%clk 0:00:11]} 57. Ra5 {[%clk 0:00:04]}  Rd1+ {[%clk 0:00:10]} 58. Kg2 {[%clk 0:00:04]}  Ke2 {[%clk 0:00:11]} 59. Ra2+ {[%clk 0:00:03]}  Rd2 {[%clk 0:00:11]} 60. Ra1 {[%clk 0:00:03]}  e3 {[%clk 0:00:11]} 61. g4 {[%clk 0:00:03]}  Rd1 {[%clk 0:00:12]} 62. Ra2+ {[%clk 0:00:03]}  Rd2 {[%clk 0:00:11]} 63. Ra1 {[%clk 0:00:02]}  Rd1 {[%clk 0:00:11]} 64. Ra2+ {[%clk 0:00:01]}  Kd3 {[%clk 0:00:11]} 65. g5 {[%clk 0:00:01]}  Rd2+ {[%clk 0:00:11]} 66. Rxd2+ {[%clk 0:00:01]}  exd2 {[%clk 0:00:12]} 67. g6 {[%clk 0:00:02]}  d1=Q {[%clk 0:00:12]} 68. g7 {[%clk 0:00:03]}  Qg4+ {[%clk 0:00:13]} 0-1


[Site "https://www.chess.com"]

[Event "Titled Tuesday Blitz April 05 Late 2022"]
[White "Zhigalko, Sergei"]
[Black "Khripachenko, Alexander"]
[WhiteFideId "13502956"]
[BlackFideId "54184975"]
[WhiteElo "2662"]
[BlackElo "2193"]
[Result "1-0"]
[Round "06"]
[TimeControl "180+1"]
[Date "2022.04.05"]
[WhiteClock "0:00:03"]
[BlackClock "0:00:02"]

1. e4 {[%clk 0:03:00]}  c5 {[%clk 0:02:59]} 2. Nf3 {[%clk 0:02:59]}  Nf6 {[%clk 0:02:59]} 3. e5 {[%clk 0:02:59]}  Nd5 {[%clk 0:02:59]} 4. c3 {[%clk 0:03:00]}  d6 {[%clk 0:02:58]} 5. Bc4 {[%clk 0:02:58]}  Nb6 {[%clk 0:02:56]} 6. Bb3 {[%clk 0:02:59]}  c4 {[%clk 0:02:54]} 7. Bc2 {[%clk 0:02:57]}  Nc6 {[%clk 0:02:55]} 8. exd6 {[%clk 0:02:57]}  e5 {[%clk 0:02:55]} 9. O-O {[%clk 0:02:56]}  Qxd6 {[%clk 0:02:53]} 10. b3 {[%clk 0:02:52]}  cxb3 {[%clk 0:02:51]} 11. axb3 {[%clk 0:02:52]}  Be7 {[%clk 0:02:48]} 12. Ba3 {[%clk 0:02:32]}  Qf6 {[%clk 0:02:48]} 13. Bxe7 {[%clk 0:02:25]}  Qxe7 {[%clk 0:02:45]} 14. Re1 {[%clk 0:02:20]}  O-O {[%clk 0:02:44]} 15. Be4 {[%clk 0:02:17]}  Nd7 {[%clk 0:01:36]} 16. d4 {[%clk 0:02:14]}  Rd8 {[%clk 0:01:01]} 17. Nbd2 {[%clk 0:02:04]}  Qf6 {[%clk 0:00:26]} 18. d5 {[%clk 0:01:12]}  Ne7 {[%clk 0:00:26]} 19. Qc2 {[%clk 0:01:07]}  Ng6 {[%clk 0:00:25]} 20. c4 {[%clk 0:01:04]}  Nc5 {[%clk 0:00:17]} 21. Bxg6 {[%clk 0:00:53]}  hxg6 {[%clk 0:00:17]} 22. Nxe5 {[%clk 0:00:53]}  Bf5 {[%clk 0:00:18]} 23. Qb2 {[%clk 0:00:45]}  Re8 {[%clk 0:00:15]} 24. Re3 {[%clk 0:00:42]}  Re7 {[%clk 0:00:10]} 25. Rae1 {[%clk 0:00:39]}  Rae8 {[%clk 0:00:11]} 26. h3 {[%clk 0:00:32]}  g5 {[%clk 0:00:11]} 27. Ndf3 {[%clk 0:00:30]}  b6 {[%clk 0:00:10]} 28. Qd4 {[%clk 0:00:24]}  a5 {[%clk 0:00:09]} 29. Qd1 {[%clk 0:00:13]}  Kh7 {[%clk 0:00:06]} 30. Qd2 {[%clk 0:00:07]}  Kg8 {[%clk 0:00:05]} 31. Qe2 {[%clk 0:00:06]}  Kh7 {[%clk 0:00:04]} 32. Ng4 {[%clk 0:00:05]}  Bxg4 {[%clk 0:00:03]} 33. Rxe7 {[%clk 0:00:06]}  Bxf3 {[%clk 0:00:03]} 34. gxf3 {[%clk 0:00:04]}  Rh8 {[%clk 0:00:03]} 35. Qe3 {[%clk 0:00:03]}  g6 {[%clk 0:00:03]} 36. Kg2 {[%clk 0:00:03]}  Kg7 {[%clk 0:00:04]} 37. Rd1 {[%clk 0:00:03]}  Ra8 {[%clk 0:00:02]} 38. Rd4 {[%clk 0:00:03]}  a4 {[%clk 0:00:03]} 39. bxa4 {[%clk 0:00:03]}  Rxa4 {[%clk 0:00:02]} 40. d6 {[%clk 0:00:04]}  Ra1 {[%clk 0:00:02]} 41. d7 {[%clk 0:00:04]}  Nxd7 {[%clk 0:00:02]} 42. Rdxd7 {[%clk 0:00:03]}  g4 {[%clk 0:00:01]} 43. Rxf7+ {[%clk 0:00:04]}  Qxf7 {[%clk 0:00:02]} 44. Qd4+ {[%clk 0:00:03]} 1-0


[Site "https://www.chess.com"]

[Event "Titled Tuesday Blitz April 05 Late 2022"]
[White "Abdyzhapar, Asylbek"]
[Black "Kollars, Dmitrij"]
[WhiteFideId "13800337"]
[BlackFideId "12909572"]
[WhiteElo "2331"]
[BlackElo "2584"]
[Result "0-1"]
[Round "07"]
[TimeControl "180+1"]
[Date "2022.04.05"]
[WhiteClock "0:00:06"]
[BlackClock "0:00:21"]

1. c4 {[%clk 0:02:59]}  Nf6 {[%clk 0:02:59]} 2. g3 {[%clk 0:02:59]}  g6 {[%clk 0:02:59]} 3. Bg2 {[%clk 0:02:59]}  Bg7 {[%clk 0:03:00]} 4. Nf3 {[%clk 0:03:00]}  O-O {[%clk 0:03:01]} 5. O-O {[%clk 0:03:00]}  Nc6 {[%clk 0:03:01]} 6. b3 {[%clk 0:03:01]}  d5 {[%clk 0:02:59]} 7. Bb2 {[%clk 0:03:00]}  d4 {[%clk 0:02:59]} 8. e3 {[%clk 0:02:58]}  e5 {[%clk 0:02:58]} 9. a3 {[%clk 0:02:57]}  a5 {[%clk 0:02:36]} 10. Re1 {[%clk 0:02:55]}  Bf5 {[%clk 0:02:33]} 11. h3 {[%clk 0:02:42]}  Qd7 {[%clk 0:02:26]} 12. Kh2 {[%clk 0:02:38]}  Rad8 {[%clk 0:02:25]} 13. exd4 {[%clk 0:02:34]}  exd4 {[%clk 0:02:12]} 14. d3 {[%clk 0:02:27]}  Rfe8 {[%clk 0:02:12]} 15. Rxe8+ {[%clk 0:02:24]}  Rxe8 {[%clk 0:02:12]} 16. g4 {[%clk 0:02:17]}  Qd6+ {[%clk 0:02:12]} 17. Kg1 {[%clk 0:02:16]}  Bc8 {[%clk 0:02:11]} 18. Nbd2 {[%clk 0:02:13]}  h5 {[%clk 0:01:34]} 19. g5 {[%clk 0:02:12]}  Nd7 {[%clk 0:01:34]} 20. Ne4 {[%clk 0:02:12]}  Qe7 {[%clk 0:01:33]} 21. b4 {[%clk 0:01:55]}  axb4 {[%clk 0:01:18]} 22. axb4 {[%clk 0:01:55]}  Qxb4 {[%clk 0:01:18]} 23. Ba3 {[%clk 0:01:54]}  Qb6 {[%clk 0:01:18]} 24. Qd2 {[%clk 0:01:43]}  Nce5 {[%clk 0:01:15]} 25. Nxe5 {[%clk 0:01:39]}  Nxe5 {[%clk 0:01:16]} 26. Bc5 {[%clk 0:01:32]}  Qe6 {[%clk 0:01:12]} 27. Ra8 {[%clk 0:01:25]}  Qd7 {[%clk 0:01:01]} 28. Nf6+ {[%clk 0:01:15]}  Bxf6 {[%clk 0:01:01]} 29. gxf6 {[%clk 0:01:15]}  Qf5 {[%clk 0:00:58]} 30. Be7 {[%clk 0:01:00]}  Kh7 {[%clk 0:00:50]} 31. f4 {[%clk 0:00:37]}  Qxd3 {[%clk 0:00:43]} 32. Qxd3 {[%clk 0:00:32]}  Nxd3 {[%clk 0:00:44]} 33. Bxb7 {[%clk 0:00:19]}  Bd7 {[%clk 0:00:44]} 34. Ra7 {[%clk 0:00:19]}  Nxf4 {[%clk 0:00:39]} 35. Be4 {[%clk 0:00:18]}  Rc8 {[%clk 0:00:33]} 36. h4 {[%clk 0:00:17]}  d3 {[%clk 0:00:30]} 37. Kf2 {[%clk 0:00:12]}  d2 {[%clk 0:00:28]} 38. Bf3 {[%clk 0:00:12]}  Bg4 {[%clk 0:00:27]} 39. Ra1 {[%clk 0:00:10]}  Nd3+ {[%clk 0:00:22]} 40. Ke3 {[%clk 0:00:10]}  Nc1 {[%clk 0:00:22]} 41. Kxd2 {[%clk 0:00:09]}  Nb3+ {[%clk 0:00:21]} 42. Ke3 {[%clk 0:00:09]}  Nxa1 {[%clk 0:00:22]} 43. Bd5 {[%clk 0:00:07]}  Be6 {[%clk 0:00:20]} 44. Bxe6 {[%clk 0:00:07]}  fxe6 {[%clk 0:00:21]} 45. f7 {[%clk 0:00:07]}  Kg7 {[%clk 0:00:22]} 46. f8=Q+ {[%clk 0:00:06]}  Rxf8 {[%clk 0:00:22]} 47. Bxf8+ {[%clk 0:00:06]}  Kxf8 {[%clk 0:00:21]} 0-1


[Site "https://www.chess.com"]

[Event "Titled Tuesday Blitz April 05 Late 2022"]
[White "Andreikin, Dmitry"]
[Black "Naroditsky, Daniel"]
[WhiteFideId "4158814"]
[BlackFideId "2026961"]
[WhiteElo "2736"]
[BlackElo "2608"]
[Result "1-0"]
[Round "07"]
[TimeControl "180+1"]
[Date "2022.04.05"]
[WhiteClock "0:00:24"]
[BlackClock "0:00:01"]

1. d4 {[%clk 0:03:00]}  Nf6 {[%clk 0:02:57]} 2. c4 {[%clk 0:03:01]}  g6 {[%clk 0:02:57]} 3. Nc3 {[%clk 0:03:01]}  Bg7 {[%clk 0:02:58]} 4. e4 {[%clk 0:03:01]}  d6 {[%clk 0:02:59]} 5. h3 {[%clk 0:03:01]}  O-O {[%clk 0:02:59]} 6. Be3 {[%clk 0:03:01]}  Na6 {[%clk 0:02:55]} 7. Bd3 {[%clk 0:03:01]}  e5 {[%clk 0:02:50]} 8. d5 {[%clk 0:03:00]}  Nc5 {[%clk 0:02:39]} 9. Bc2 {[%clk 0:03:01]}  a5 {[%clk 0:02:32]} 10. Nge2 {[%clk 0:02:59]}  Nh5 {[%clk 0:02:29]} 11. Qd2 {[%clk 0:02:59]}  f5 {[%clk 0:02:11]} 12. exf5 {[%clk 0:02:59]}  gxf5 {[%clk 0:02:12]} 13. O-O-O {[%clk 0:03:00]}  e4 {[%clk 0:01:56]} 14. g4 {[%clk 0:02:56]}  fxg4 {[%clk 0:01:44]} 15. hxg4 {[%clk 0:02:51]}  Bxg4 {[%clk 0:01:45]} 16. Rdg1 {[%clk 0:02:36]}  Bf3 {[%clk 0:01:27]} 17. Rh2 {[%clk 0:02:15]}  Kh8 {[%clk 0:01:19]} 18. Nd4 {[%clk 0:02:12]}  Qe8 {[%clk 0:01:05]} 19. Nxf3 {[%clk 0:02:01]}  Rxf3 {[%clk 0:01:06]} 20. Bd4 {[%clk 0:01:52]}  Nd3+ {[%clk 0:00:51]} 21. Bxd3 {[%clk 0:01:52]}  Bxd4 {[%clk 0:00:52]} 22. Bxe4 {[%clk 0:01:33]}  Bxc3 {[%clk 0:00:52]} 23. Qc2 {[%clk 0:01:33]}  Qe5 {[%clk 0:00:44]} 24. Bxf3 {[%clk 0:01:30]}  Qf4+ {[%clk 0:00:08]} 25. Kb1 {[%clk 0:01:29]}  Qxf3 {[%clk 0:00:06]} 26. Rg3 {[%clk 0:01:08]}  Qf7 {[%clk 0:00:02]} 27. Qxc3+ {[%clk 0:01:04]}  Ng7 {[%clk 0:00:03]} 28. Qc2 {[%clk 0:00:45]}  Nf5 {[%clk 0:00:02]} 29. Qc3+ {[%clk 0:00:37]}  Ng7 {[%clk 0:00:02]} 30. Rhg2 {[%clk 0:00:35]}  Rg8 {[%clk 0:00:02]} 31. a3 {[%clk 0:00:36]}  Qf5+ {[%clk 0:00:03]} 32. Ka2 {[%clk 0:00:36]}  Qf7 {[%clk 0:00:04]} 33. Qxa5 {[%clk 0:00:33]}  b6 {[%clk 0:00:04]} 34. Qc3 {[%clk 0:00:33]}  b5 {[%clk 0:00:05]} 35. cxb5 {[%clk 0:00:29]}  Qxd5+ {[%clk 0:00:05]} 36. b3 {[%clk 0:00:29]}  Qf7 {[%clk 0:00:02]} 37. a4 {[%clk 0:00:30]}  h5 {[%clk 0:00:02]} 38. a5 {[%clk 0:00:27]}  Kh7 {[%clk 0:00:03]} 39. a6 {[%clk 0:00:26]}  h4 {[%clk 0:00:01]} 40. Rxg7+ {[%clk 0:00:24]} 1-0


[Site "https://www.chess.com"]